[Event "9th RTU Rapid 2019"]
[Site "Riga"]
[Date "2019.08.04"]
[Round "8.2"]
[White "Krivonosov, Oleg"]
[Black "Gagare, Shardul"]
[Result "0-1"]
[ECO "E08"]
[WhiteElo "2445"]
[BlackElo "2430"]
[Annotator "NA"]
[PlyCount "132"]
[EventDate "2019.08.05"]
[EventType "swiss"]
[EventCountry "LAT"]
[SourceTitle "playchess.com"]
[Source "ChessBase"]
[SourceQuality "1"]
[TimeControl "5400+30"]

1. Nf3 {[%emt 1:15:21]} d5 {[%emt 1:15:22]} 2. d4 {[%emt 0:00:27]} Nf6 {[%emt 0:00:27]} 3. c4 {[%emt 0:00:26]} e6 {[%emt 0:00:26]} 4. g3 {[%emt 0:00:27]} Bb4+ {[%emt 0:00:27]} 5. Bd2 {[%emt 0:00:26]} Be7 {[%emt 0:00:26]} 6. Bg2 {[%emt 0:00:26]} O-O {[%emt 0:00:28]} 7. O-O {[%emt 0:00:28]} c6 {[%emt 0:00:26]} 8. Qc2 {[%emt 0:00:34]} Nbd7 {[%emt 0:00:27]} 9. Bf4 {[%emt 0:00:39]} b6 {[%emt 0:00:27]} 10. Rd1 {[%emt 0:00:35]} Bb7 {[%emt 0:00:32]} 11. Ne5 {[%emt 0:00:40]} Rc8 {[%emt 0:01:59]} 12. Nc3 {[%emt 0:00:30]} dxc4 {[%emt 0:00:36]} 13. Nxc4 {[%emt 0:00:41]} Nd5 {[%emt 0:00:33]} 14. Bd6 {[%emt 0:00:38]} Ba6 {[%emt 0:00:36]} 15. Bxe7 {[%emt 0:00:40]} Qxe7 {[%emt 0:00:27]} 16. Qa4 {[%emt 0:02:04]} Nxc3 {[%emt 0:02:46]} 17. bxc3 {[%emt 0:00:31]} Bxc4 {[%emt 0:00:43]} 18. Qxc4 {[%emt 0:00:27]} c5 {[%emt 0:00:28]} 19. Qa4 {[%emt 0:01:03]} Nf6 {[%emt 0:00:32]} 20. e3 {[%emt 0:00:34]} Rc7 {[%emt 0:00:30]} 21. Qb5 {[%emt 0:01:27]} Rfc8 {[%emt 0:01:11]} 22. a4 {[%emt 0:00:26]} cxd4 {[%emt 0:00:48]} 23. cxd4 {[%emt 0:00:27]} Rc2 {[%emt 0:00:31]} 24. Bf3 {[%emt 0:00:37]} Ne8 {[%emt 0:01:06]} 25. Rab1 {[%emt 0:01:55]} Nd6 {[%emt 0:00:46]} 26. Qb4 {[%emt 0:00:49]} Qf6 {[%emt 0:00:34]} 27. Qxd6 {[%emt 0:00:57]} Qxf3 {[%emt 0:00:27]} 28. Rf1 {[%emt 0:00:33]} h5 {[%emt 0:00:41]} 29. Qf4 {[%emt 0:00:50]} Qxf4 {[%emt 0:01:05]} 30. gxf4 {[%emt 0:00:26]} Ra2 {[%emt 0:00:34]} 31. Rb4 {[%emt 0:00:58]} Rc3 {[%emt 0:00:33]} 32. d5 {[%emt 0:00:53]} exd5 {[%emt 0:00:27]} 33. Rd4 {[%emt 0:00:56]} Rc5 {[%emt 0:00:27]} 34. Rb1 {[%emt 0:00:54]} g6 {[%emt 0:00:34]} 35. f5 {[%emt 0:00:49]} gxf5 {[%emt 0:01:32]} 36. Rb5 {[%emt 0:01:00]} Rxa4 {[%emt 0:01:25]} 37. Rxc5 {[%emt 0:00:43]} Ra1+ {[%emt 0:00:27]} 38. Kg2 {[%emt 0:00:28]} bxc5 {[%emt 0:00:26]} 39. Rxd5 {[%emt 0:00:25]} c4 {[%emt 0:00:34]} 40. Rc5 {[%emt 0:00:38]} Rc1 {[%emt 0:02:20]} 41. Ra5 {[%emt 0:00:38]} Kg7 {[%emt 0:01:09]} 42. Rxa7 {[%emt 0:00:26]} Kf6 {[%emt 0:00:26]} 43. Rc7 {[%emt 0:00:30]} c3 {[%emt 0:01:29]} 44. Kf3 {[%emt 0:00:36]} Rc2 {[%emt 0:00:26]} 45. h4 {[%emt 0:00:47]} Ke6 {[%emt 0:00:28]} 46. Rc4 {[%emt 0:00:40]} Kd5 {[%emt 0:00:52]} 47. Rc7 {[%emt 0:00:29]} f4 {[%emt 0:01:02]} 48. Rxf7 {[%emt 0:02:33]} Kc4 {[%emt 0:00:33]} 49. Rc7+ {[%emt 0:00:46]} Kb3 {[%emt 0:00:28]} 50. Rb7+ {[%emt 0:00:29]} Ka3 {[%emt 0:00:26]} 51. Rc7 {[%emt 0:00:41]} Kb2 {[%emt 0:00:37]} 52. Rb7+ {[%emt 0:00:34]} Kc1 {[%emt 0:00:28]} 53. Rc7 {[%emt 0:00:30]} Kd2 {[%emt 0:00:30]} 54. Kxf4 {[%emt 0:00:45]} Ra2 {[%emt 0:00:31]} 55. Kg5 {[%emt 0:00:52]} c2 {[%emt 0:00:36]} 56. e4 {[%emt 0:01:01]} Ra3 {[%emt 0:00:52]} 57. Rxc2+ {[%emt 0:00:31]} Kxc2 {[%emt 0:00:26]} 58. e5 {[%emt 0:00:43]} Kd3 {[%emt 0:00:42]} 59. e6 {[%emt 0:00:32]} Ke4 {[%emt 0:00:41]} 60. e7 {[%emt 0:01:10]} Ra8 {[%emt 0:00:26]} 61. Kg6 {[%emt 0:00:41]} Kf4 {[%emt 0:00:36]} 62. f3 {[%emt 0:00:36]} Rb8 {[%emt 0:00:44]} 63. Kf6 {[%emt 0:00:40]} Kxf3 {[%emt 0:00:39]} 64. Kg5 {[%emt 0:00:29]} Ke4 {[%emt 0:00:30]} 65. Kxh5 {[%emt 0:00:49]} Kf5 {[%emt 0:00:26]} 66. Kh6 Ke5 {[%emt 0:00:07]} 0-1

[Event "9th RTU Rapid 2019"]
[Site "Riga"]
[Date "2019.08.04"]
[Round "8.3"]
[White "Gukesh D"]
[Black "Saduakassova, Dinara"]
[Result "1/2-1/2"]
[ECO "B36"]
[WhiteElo "1683"]
[BlackElo "2437"]
[Annotator "NA"]
[PlyCount "108"]
[EventDate "2019.08.05"]
[EventType "swiss"]
[EventCountry "LAT"]
[SourceTitle "playchess.com"]
[Source "ChessBase"]
[SourceQuality "1"]
[TimeControl "5400+30"]

1. c4 {[%emt 1:15:23]} c5 {[%emt 1:15:29]} 2. Nf3 {[%emt 0:00:29]} g6 {[%emt 0:00:32]} 3. d4 {[%emt 0:00:27]} cxd4 {[%emt 0:00:28]} 4. Nxd4 {[%emt 0:00:27]} Nc6 {[%emt 0:00:26]} 5. e4 {[%emt 0:00:32]} Nf6 {[%emt 0:00:27]} 6. Nc3 {[%emt 0:00:26]} d6 {[%emt 0:00:26]} 7. Be2 {[%emt 0:00:33]} Nxd4 {[%emt 0:00:27]} 8. Qxd4 {[%emt 0:00:27]} Bg7 {[%emt 0:00:26]} 9. Be3 {[%emt 0:01:13]} O-O {[%emt 0:00:27]} 10. Qd2 {[%emt 0:00:27]} a5 {[%emt 0:00:26]} 11. O-O {[%emt 0:00:32]} a4 {[%emt 0:00:27]} 12. Rfd1 {[%emt 0:01:09]} Qa5 {[%emt 0:00:35]} 13. Rac1 {[%emt 0:00:50]} Be6 {[%emt 0:00:36]} 14. Qd3 {[%emt 0:02:50]} Rfc8 {[%emt 0:00:52]} 15. Nd5 {[%emt 0:00:41]} Nxd5 {[%emt 0:00:46]} 16. exd5 {[%emt 0:00:53]} Bf5 {[%emt 0:00:36]} 17. Qa3 {[%emt 0:00:30]} Bd7 {[%emt 0:01:20]} 18. Bg5 {[%emt 0:01:46]} Qc5 {[%emt 0:01:47]} 19. Qxc5 {[%emt 0:00:46]} dxc5 {[%emt 0:00:26]} 20. Rc2 {[%emt 0:01:34]} Kf8 {[%emt 0:01:03]} 21. Bd3 {[%emt 0:00:36]} Ra6 {[%emt 0:00:41]} 22. Re2 {[%emt 0:01:07]} Bf6 {[%emt 0:02:02]} 23. Bh6+ {[%emt 0:00:39]} Kg8 {[%emt 0:00:27]} 24. Bc1 {[%emt 0:01:38]} Rb6 {[%emt 0:00:45]} 25. h3 {[%emt 0:00:35]} h5 {[%emt 0:01:17]} 26. Rde1 {[%emt 0:00:45]} Kg7 {[%emt 0:01:06]} 27. Kh2 {[%emt 0:01:59]} e6 {[%emt 0:01:26]} 28. Be4 {[%emt 0:01:41]} Rb4 {[%emt 0:01:14]} 29. a3 {[%emt 0:00:48]} Rb6 {[%emt 0:01:35]} 30. g3 {[%emt 0:01:22]} exd5 {[%emt 0:01:46]} 31. Bxd5 {[%emt 0:00:27]} Bc6 {[%emt 0:00:30]} 32. Rd1 {[%emt 0:01:12]} Rd8 {[%emt 0:01:42]} 33. Be3 {[%emt 0:00:51]} Rxb2 {[%emt 0:01:27]} 34. Rxb2 {[%emt 0:00:26]} Bxb2 {[%emt 0:00:26]} 35. Bxc5 {[%emt 0:00:36]} Be5 {[%emt 0:00:53]} 36. f4 {[%emt 0:00:52]} Bf6 {[%emt 0:00:32]} 37. Bb4 {[%emt 0:00:38]} Rc8 {[%emt 0:01:17]} 38. Kg2 {[%emt 0:00:33]} Re8 {[%emt 0:01:20]} 39. Kf3 {[%emt 0:00:32]} Rc8 {[%emt 0:00:33]} 40. g4 {[%emt 0:00:32]} hxg4+ {[%emt 0:00:26]} 41. hxg4 {[%emt 0:00:26]} g5 {[%emt 0:00:26]} 42. f5 {[%emt 0:00:37]} Rh8 {[%emt 0:00:32]} 43. Bxc6 {[%emt 0:00:28]} bxc6 {[%emt 0:00:26]} 44. Rd6 {[%emt 0:00:34]} Rh3+ {[%emt 0:00:26]} 45. Kg2 {[%emt 0:00:27]} Rh4 {[%emt 0:00:33]} 46. Kf3 {[%emt 0:00:32]} Rh3+ {[%emt 0:00:26]} 47. Kg2 {[%emt 0:00:27]} Rh4 {[%emt 0:00:31]} 48. Kf3 {[%emt 0:00:28]} Rh3+ {[%emt 0:00:26]} 49. Ke4 {[%emt 0:00:27]} Rg3 {[%emt 0:00:34]} 50. Rxc6 {[%emt 0:00:35]} Rxg4+ {[%emt 0:00:26]} 51. Ke3 {[%emt 0:00:30]} Rg3+ {[%emt 0:00:28]} 52. Ke4 {[%emt 0:00:30]} Rg4+ {[%emt 0:00:29]} 53. Ke3 {[%emt 0:00:30]} Rg3+ {[%emt 0:00:31]} 54. Ke4 {[%emt 0:00:27]} Rg4+ {[%emt 0:00:28]} 1/2-1/2

[Event "9th RTU Rapid 2019"]
[Site "Riga"]
[Date "2019.08.04"]
[Round "8.4"]
[White "Omelja, Artem"]
[Black "Galchenko, Matvey"]
[Result "0-1"]
[ECO "A70"]
[WhiteElo "2436"]
[BlackElo "2360"]
[Annotator "NA"]
[PlyCount "108"]
[EventDate "2019.08.05"]
[EventType "swiss"]
[EventCountry "LAT"]
[SourceTitle "playchess.com"]
[Source "ChessBase"]
[SourceQuality "1"]
[TimeControl "5400+30"]

1. d4 {[%emt 1:15:22]} Nf6 {[%emt 1:15:21]} 2. c4 {[%emt 0:00:27]} c5 {[%emt 0:00:26]} 3. d5 {[%emt 0:00:28]} e6 {[%emt 0:00:27]} 4. Nc3 {[%emt 0:00:27]} exd5 {[%emt 0:00:26]} 5. cxd5 {[%emt 0:00:27]} d6 {[%emt 0:00:26]} 6. e4 {[%emt 0:00:27]} g6 {[%emt 0:00:26]} 7. h3 {[%emt 0:00:29]} Bg7 {[%emt 0:00:27]} 8. Bd3 {[%emt 0:00:27]} O-O {[%emt 0:00:27]} 9. Nf3 {[%emt 0:00:28]} b5 {[%emt 0:00:27]} 10. O-O {[%emt 0:00:28]} b4 {[%emt 0:01:02]} 11. Ne2 {[%emt 0:00:28]} Nbd7 {[%emt 0:00:29]} 12. Ng3 {[%emt 0:00:40]} Re8 {[%emt 0:00:28]} 13. Re1 {[%emt 0:00:28]} a5 {[%emt 0:00:32]} 14. Nf1 {[%emt 0:00:32]} a4 {[%emt 0:00:48]} 15. a3 {[%emt 0:00:43]} b3 {[%emt 0:01:10]} 16. Bd2 {[%emt 0:00:57]} Ba6 {[%emt 0:00:59]} 17. Bc3 {[%emt 0:00:43]} c4 {[%emt 0:00:44]} 18. Bb1 {[%emt 0:00:29]} Nc5 {[%emt 0:00:38]} 19. N1d2 {[%emt 0:00:57]} Nfd7 {[%emt 0:00:51]} 20. Qc1 {[%emt 0:00:39]} Bxc3 {[%emt 0:00:41]} 21. Qxc3 {[%emt 0:00:26]} Qf6 {[%emt 0:00:25]} 22. Nd4 {[%emt 0:00:45]} Rac8 {[%emt 0:01:37]} 23. Re3 {[%emt 0:00:27]} Nd3 {[%emt 0:00:50]} 24. Bxd3 {[%emt 0:00:49]} cxd3 {[%emt 0:00:26]} 25. Qb4 {[%emt 0:00:26]} Rb8 {[%emt 0:00:50]} 26. Qc3 {[%emt 0:00:27]} Kg7 {[%emt 0:00:59]} 27. Rc1 {[%emt 0:00:55]} Ne5 {[%emt 0:01:22]} 28. Ree1 {[%emt 0:03:11]} Nd7 {[%emt 0:02:22]} 29. Nc6 {[%emt 0:00:49]} Rbc8 {[%emt 0:01:04]} 30. f3 {[%emt 0:00:41]} Ne5 {[%emt 0:01:07]} 31. Qd4 {[%emt 0:00:29]} Bb5 {[%emt 0:02:44]} 32. Nb4 {[%emt 0:01:48]} Nxf3+ {[%emt 0:01:37]} 33. Nxf3 {[%emt 0:00:34]} Qxd4+ {[%emt 0:00:26]} 34. Nxd4 {[%emt 0:00:27]} d2 {[%emt 0:00:27]} 35. Rcd1 {[%emt 0:00:35]} dxe1=Q+ {[%emt 0:00:28]} 36. Rxe1 {[%emt 0:00:26]} Bd7 {[%emt 0:00:32]} 37. Kf2 {[%emt 0:00:37]} Rc4 {[%emt 0:00:49]} 38. Ke3 {[%emt 0:00:28]} f5 {[%emt 0:00:33]} 39. Kd3 {[%emt 0:00:26]} Rc5 {[%emt 0:00:26]} 40. Ndc6 {[%emt 0:00:49]} fxe4+ {[%emt 0:00:37]} 41. Kd4 {[%emt 0:00:27]} h5 {[%emt 0:00:49]} 42. Ke3 {[%emt 0:00:43]} Rf8 {[%emt 0:00:40]} 43. Nd4 {[%emt 0:00:33]} Re8 {[%emt 0:00:46]} 44. Ne2 {[%emt 0:00:28]} Rcc8 {[%emt 0:00:54]} 45. Nc3 {[%emt 0:00:35]} Re5 {[%emt 0:00:36]} 46. Kd4 {[%emt 0:00:32]} Rce8 {[%emt 0:00:31]} 47. Re2 {[%emt 0:00:49]} e3 {[%emt 0:00:27]} 48. Nd3 {[%emt 0:00:26]} R5e7 {[%emt 0:00:39]} 49. Nb4 {[%emt 0:01:40]} Rc8 {[%emt 0:00:38]} 50. Ne4 {[%emt 0:00:37]} Rc1 {[%emt 0:00:55]} 51. Nxd6 {[%emt 0:00:35]} Rd1+ {[%emt 0:00:26]} 52. Kc3 {[%emt 0:00:39]} g5 {[%emt 0:00:26]} 53. Nc4 {[%emt 0:00:34]} Rc1+ {[%emt 0:00:37]} 54. Kd4 {[%emt 0:00:28]} Bb5 {[%emt 0:00:26]} 0-1

[Event "9th RTU Rapid 2019"]
[Site "Riga"]
[Date "2019.08.04"]
[Round "8.5"]
[White "Korchmar, Vasiliy"]
[Black "Wagner, Dennis"]
[Result "1-0"]
[ECO "D93"]
[WhiteElo "2413"]
[BlackElo "2473"]
[Annotator "ChessBase"]
[PlyCount "68"]
[EventDate "2019.08.05"]
[EventType "swiss"]
[EventCountry "LAT"]
[SourceTitle "playchess.com"]
[Source "ChessBase"]
[SourceQuality "1"]
[TimeControl "5400+30"]

1. d4 {[%emt 1:15:25]} Nf6 {[%emt 1:15:23]} 2. c4 {[%emt 0:00:23]} g6 {[%emt 0:00:27]} 3. Nc3 {[%emt 0:00:28]} d5 {[%emt 0:00:25]} 4. Nf3 {[%emt 0:00:28]} Bg7 {[%emt 0:00:26]} 5. Bf4 {[%emt 0:00:27]} O-O {[%emt 0:00:27]} 6. e3 {[%emt 0:00:26]} c5 {[%emt 0:00:26]} 7. dxc5 {[%emt 0:00:27]} Ne4 {[%emt 0:00:27]} 8. Rc1 {[%emt 0:00:29]} Nd7 {[%emt 0:00:26]} 9. cxd5 {[%emt 0:00:27]} Qa5 {[%emt 0:00:27]} 10. Be2 {[%emt 0:00:29]} Nxc3 {[%emt 0:04:01]} 11. bxc3 {[%emt 0:00:26]} Bxc3+ {[%emt 0:00:26]} 12. Kf1 {[%emt 0:00:26]} Nxc5 {[%emt 0:00:26]} 13. h4 {[%emt 0:00:27]} Bd7 {[%emt 0:00:27]} 14. Kg1 {[%emt 0:00:26]} Rac8 {[%emt 0:03:00]} 15. h5 {[%emt 0:00:57]} Ba4 {[%emt 0:00:59]} 16. Qf1 {[%emt 0:00:28]} Ne4 {[%emt 0:00:31]} 17. hxg6 {[%emt 0:01:56]} fxg6 {[%emt 0:00:26]} 18. Bd3 {[%emt 0:02:19]} Qxd5 {[%emt 0:01:28]} 19. Bxe4 {[%emt 0:00:35]} Qxe4 {[%emt 0:00:26]} 20. Rxh7 {[%emt 0:03:00]} Bb2 {[%emt 0:03:58]} 21. Rxc8 {[%emt 0:02:45]} Rxc8 {[%emt 0:00:26]} 22. Kh2 {[%emt 0:00:26]} Rc1 {[%emt 0:01:17]} 23. Qe2 {[%emt 0:00:26]} Bf6 {[%emt 0:00:45]} 24. Rh6 {[%emt 0:01:13]} Rc2 {[%emt 0:01:08]} 25. Qd1 {[%emt 0:00:45]} Rc8 {[%emt 0:01:53]} 26. Qd2 {[%emt 0:00:26]} Bc6 {[%emt 0:00:42]} 27. Qa5 {[%emt 0:01:01]} Qc2 {[%emt 0:01:23]} 28. Ne5 {[%emt 0:01:07]} Qxf2 {[%emt 0:00:48]} 29. Rxg6+ {[%emt 0:01:14]} Kh7 {[%emt 0:00:28]} 30. Rh6+ {[%emt 0:00:53]} Kg7 {[%emt 0:00:28]} 31. Nxc6 {[%emt 0:01:44]} Rxc6 {[%emt 0:00:54]} 32. Qf5 {[%emt 0:00:26]} Qxf4+ {[%emt 0:00:37]} 33. Qxf4 {[%emt 0:00:31]} Re6 {[%emt 0:00:33]} 34. Rh5 {[%emt 0:00:35]} Kg6 {[%emt 0:00:29]} 1-0

[Event "9th RTU Rapid 2019"]
[Site "Riga"]
[Date "2019.08.04"]
[Round "8.6"]
[White "Suleymenov, Alisher"]
[Black "Kopylov, Michael"]
[Result "1-0"]
[ECO "D30"]
[WhiteElo "2348"]
[BlackElo "2414"]
[Annotator "NA"]
[PlyCount "53"]
[EventDate "2019.08.05"]
[EventType "swiss"]
[EventCountry "LAT"]
[SourceTitle "playchess.com"]
[Source "ChessBase"]
[SourceQuality "1"]
[TimeControl "5400+30"]

1. d4 {[%emt 1:15:21]} d5 {[%emt 1:15:22]} 2. c4 {[%emt 0:00:26]} e6 {[%emt 0:00:26]} 3. Nf3 {[%emt 0:00:26]} c6 {[%emt 0:00:26]} 4. g3 {[%emt 0:00:26]} dxc4 {[%emt 0:00:27]} 5. Bg2 {[%emt 0:00:25]} b5 {[%emt 0:00:27]} 6. O-O {[%emt 0:00:33]} Bb7 {[%emt 0:00:26]} 7. Ne5 {[%emt 0:00:28]} Nd7 {[%emt 0:00:35]} 8. Nc3 {[%emt 0:01:29]} Nxe5 {[%emt 0:00:29]} 9. dxe5 {[%emt 0:00:25]} Qc7 {[%emt 0:00:26]} 10. Ne4 {[%emt 0:06:53]} Rd8 {[%emt 0:01:11]} 11. Qc2 {[%emt 0:00:26]} Qxe5 {[%emt 0:02:01]} 12. Bf4 {[%emt 0:00:31]} Qf5 {[%emt 0:00:35]} 13. a4 {[%emt 0:01:30]} a6 {[%emt 0:01:00]} 14. Rfd1 {[%emt 0:00:45]} Rxd1+ {[%emt 0:04:22]} 15. Rxd1 {[%emt 0:00:31]} Nf6 {[%emt 0:00:33]} 16. axb5 {[%emt 0:00:55]} axb5 {[%emt 0:00:29]} 17. b3 {[%emt 0:03:49]} Nd5 {[%emt 0:02:33]} 18. bxc4 {[%emt 0:01:31]} Nxf4 {[%emt 0:01:22]} 19. cxb5 {[%emt 0:01:05]} Qxb5 {[%emt 0:02:07]} 20. gxf4 {[%emt 0:00:47]} Bb4 {[%emt 0:04:15]} 21. Rb1 {[%emt 0:01:15]} O-O {[%emt 0:00:16]} 22. Nd6 {[%emt 0:00:01]} Qb6 {[%emt 0:01:01]} 23. Qa4 {[%emt 0:01:16]} c5 {[%emt 0:00:34]} 24. Nxb7 {[%emt 0:00:27]} Qc7 {[%emt 0:00:28]} 25. e3 {[%emt 0:00:33]} h6 {[%emt 0:00:27]} 26. Rc1 {[%emt 0:00:27]} Rb8 {[%emt 0:00:31]} 27. Qxb4 {[%emt 0:00:28]} 1-0

[Event "9th RTU Rapid 2019"]
[Site "Riga"]
[Date "2019.08.04"]
[Round "8.7"]
[White "Kantans, Toms"]
[Black "Maltsevskaya, Aleksandra"]
[Result "1-0"]
[ECO "B45"]
[WhiteElo "2471"]
[BlackElo "2321"]
[Annotator "ChessBase"]
[PlyCount "113"]
[EventDate "2019.08.05"]
[EventType "swiss"]
[EventCountry "LAT"]
[SourceTitle "playchess.com"]
[Source "ChessBase"]
[SourceQuality "1"]
[TimeControl "5400+30"]

1. e4 {[%emt 1:15:22]} c5 {[%emt 1:15:23]} 2. Nf3 {[%emt 0:00:27]} e6 {[%emt 0:00:27]} 3. d4 {[%emt 0:00:26]} cxd4 {[%emt 0:00:27]} 4. Nxd4 {[%emt 0:00:26]} Nc6 {[%emt 0:00:28]} 5. Nc3 {[%emt 0:00:30]} Nf6 {[%emt 0:00:27]} 6. Ndb5 {[%emt 0:00:44]} Bb4 {[%emt 0:00:27]} 7. a3 {[%emt 0:00:26]} Bxc3+ {[%emt 0:00:27]} 8. Nxc3 {[%emt 0:00:26]} d5 {[%emt 0:00:26]} 9. exd5 {[%emt 0:00:26]} exd5 {[%emt 0:00:26]} 10. Bd3 {[%emt 0:00:27]} O-O {[%emt 0:00:36]} 11. O-O {[%emt 0:00:31]} d4 {[%emt 0:00:27]} 12. Ne2 {[%emt 0:00:29]} Bg4 {[%emt 0:00:28]} 13. Bg5 {[%emt 0:01:21]} Qd6 {[%emt 0:03:57]} 14. Qd2 {[%emt 0:00:42]} Bxe2 {[%emt 0:01:57]} 15. Qxe2 {[%emt 0:01:06]} Rfe8 {[%emt 0:00:28]} 16. Qd2 {[%emt 0:01:14]} Ne5 {[%emt 0:02:42]} 17. Rad1 {[%emt 0:03:21]} Nxd3 {[%emt 0:04:03]} 18. Qxd3 {[%emt 0:00:29]} Ne4 {[%emt 0:00:28]} 19. Bc1 {[%emt 0:02:10]} Rad8 {[%emt 0:01:08]} 20. Rfe1 {[%emt 0:00:35]} Nc5 {[%emt 0:01:46]} 21. Rxe8+ {[%emt 0:00:35]} Rxe8 {[%emt 0:00:26]} 22. Qb5 {[%emt 0:01:53]} Qc6 {[%emt 0:00:32]} 23. Qxc6 {[%emt 0:00:31]} bxc6 {[%emt 0:00:26]} 24. Kf1 {[%emt 0:00:43]} Ne6 {[%emt 0:00:31]} 25. Ke2 {[%emt 0:01:03]} f5 {[%emt 0:02:12]} 26. Kd3 {[%emt 0:00:29]} Kf7 {[%emt 0:00:27]} 27. Kc4 {[%emt 0:00:49]} Rd8 {[%emt 0:00:54]} 28. b4 {[%emt 0:00:32]} a5 {[%emt 0:00:34]} 29. bxa5 {[%emt 0:01:18]} Rd5 {[%emt 0:00:27]} 30. Bd2 {[%emt 0:00:27]} Rc5+ {[%emt 0:00:26]} 31. Kd3 {[%emt 0:00:25]} Rb5 {[%emt 0:00:29]} 32. Ra1 {[%emt 0:03:08]} Rb2 {[%emt 0:00:34]} 33. Bc1 {[%emt 0:02:11]} Rb5 {[%emt 0:01:04]} 34. a4 {[%emt 0:00:36]} Rxa5 {[%emt 0:00:01]} 35. Bd2 {[%emt 0:00:26]} Nc5+ {[%emt 0:01:21]} 36. Kxd4 {[%emt 0:00:30]} Rxa4+ {[%emt 0:00:27]} 37. Rxa4 {[%emt 0:00:02]} Nxa4 {[%emt 0:00:26]} 38. Ke5 {[%emt 0:01:12]} g6 {[%emt 0:00:32]} 39. Kd6 {[%emt 0:00:29]} c5 {[%emt 0:00:28]} 40. Kc6 {[%emt 0:00:42]} c4 {[%emt 0:00:35]} 41. Kb5 {[%emt 0:00:35]} c3 {[%emt 0:00:27]} 42. Be1 {[%emt 0:00:33]} Nb2 {[%emt 0:00:27]} 43. Bxc3 {[%emt 0:00:27]} Nd1 {[%emt 0:00:26]} 44. Bd4 {[%emt 0:00:26]} Ke6 {[%emt 0:00:29]} 45. Kc6 {[%emt 0:00:40]} g5 {[%emt 0:00:28]} 46. c4 {[%emt 0:00:27]} h5 {[%emt 0:00:27]} 47. c5 {[%emt 0:00:27]} f4 {[%emt 0:00:30]} 48. Kb7 {[%emt 0:00:33]} Kd5 {[%emt 0:00:46]} 49. c6 {[%emt 0:00:26]} Kxd4 {[%emt 0:00:26]} 50. c7 {[%emt 0:00:25]} Nxf2 {[%emt 0:00:27]} 51. c8=Q {[%emt 0:00:27]} Ne4 {[%emt 0:00:26]} 52. Qh8+ {[%emt 0:00:31]} Ke3 {[%emt 0:00:30]} 53. Qxh5 {[%emt 0:00:27]} Kd4 {[%emt 0:00:34]} 54. Kc6 {[%emt 0:00:30]} Ke3 {[%emt 0:00:28]} 55. Qd1 {[%emt 0:00:40]} Nc3 {[%emt 0:00:41]} 56. Qf3+ {[%emt 0:00:29]} Kd4 {[%emt 0:00:26]} 57. h4 {[%emt 0:00:00] Kd5+} 1-0

[Event "9th RTU Rapid 2019"]
[Site "Riga"]
[Date "2019.08.04"]
[Round "8.8"]
[White "Low, Zhen Yu Cyrus"]
[Black "Vishnu Prasanna. V"]
[Result "1-0"]
[ECO "C54"]
[WhiteElo "2169"]
[BlackElo "2465"]
[Annotator "ChessBase"]
[PlyCount "61"]
[EventDate "2019.08.05"]
[EventType "swiss"]
[EventCountry "LAT"]
[SourceTitle "playchess.com"]
[Source "ChessBase"]
[SourceQuality "1"]
[TimeControl "5400+30"]

1. e4 {[%emt 1:15:21]} e5 {[%emt 1:15:22]} 2. Nf3 {[%emt 0:00:27]} Nc6 {[%emt 0:00:27]} 3. Bc4 {[%emt 0:00:26]} Bc5 {[%emt 0:00:29]} 4. O-O {[%emt 0:00:27]} Nf6 {[%emt 0:00:33]} 5. d3 {[%emt 0:00:27]} a6 {[%emt 0:00:34]} 6. c3 {[%emt 0:00:33]} d6 {[%emt 0:00:28]} 7. Bb3 {[%emt 0:00:26]} h6 {[%emt 0:00:46]} 8. Nbd2 {[%emt 0:00:30]} O-O {[%emt 0:00:33]} 9. h3 {[%emt 0:00:30]} Re8 {[%emt 0:00:37]} 10. Bc2 {[%emt 0:01:11]} d5 {[%emt 0:00:38]} 11. exd5 {[%emt 0:00:29]} Nxd5 {[%emt 0:00:27]} 12. Re1 {[%emt 0:00:40]} Ba7 {[%emt 0:01:21]} 13. Nf1 {[%emt 0:00:44]} Bf5 {[%emt 0:01:19]} 14. Ng3 {[%emt 0:01:13]} Bg6 {[%emt 0:00:28]} 15. Bd2 {[%emt 0:00:53]} Qd7 {[%emt 0:00:55]} 16. Nh4 {[%emt 0:00:40]} Bh7 {[%emt 0:00:35]} 17. Qf3 {[%emt 0:01:35]} Re6 {[%emt 0:00:47]} 18. Nh5 {[%emt 0:02:45]} Nf6 {[%emt 0:02:13]} 19. Rad1 {[%emt 0:00:45]} Rae8 {[%emt 0:02:59]} 20. Ng3 {[%emt 0:01:20]} Nd5 {[%emt 0:03:26]} 21. Nh5 {[%emt 0:02:14]} Nf4 {[%emt 0:01:27]} 22. Bxf4 {[%emt 0:02:06]} exf4 {[%emt 0:00:28]} 23. Rxe6 {[%emt 0:00:25]} Rxe6 {[%emt 0:01:35]} 24. Qg4 {[%emt 0:02:22]} f5 {[%emt 0:00:28]} 25. Qxf4 {[%emt 0:00:26]} Re2 {[%emt 0:01:35]} 26. Bb3+ {[%emt 0:01:19]} Kh8 {[%emt 0:00:45]} 27. d4 {[%emt 0:00:30]} Ne7 {[%emt 0:02:00]} 28. Qf3 {[%emt 0:01:35]} Re4 {[%emt 0:00:31]} 29. Qg3 {[%emt 0:00:57]} g5 {[%emt 0:00:31]} 30. Bc2 {[%emt 0:01:27]} Rxh4 {[%emt 0:00:29]} 31. Qe5+ {[%emt 0:00:25]} 1-0

[Event "9th RTU Rapid 2019"]
[Site "Riga"]
[Date "2019.08.04"]
[Round "8.9"]
[White "Kiik, Kalle"]
[Black "Solys, Laimutis"]
[Result "1/2-1/2"]
[ECO "E17"]
[WhiteElo "2308"]
[BlackElo "2143"]
[Annotator "NA"]
[PlyCount "84"]
[EventDate "2019.08.05"]
[EventType "swiss"]
[EventCountry "LAT"]
[SourceTitle "playchess.com"]
[Source "ChessBase"]
[SourceQuality "1"]
[TimeControl "5400+30"]

1. Nf3 {[%emt 1:15:25]} Nf6 {[%emt 1:16:05]} 2. g3 {[%emt 0:00:26]} b6 {[%emt 0:00:40]} 3. Bg2 {[%emt 0:00:27]} Bb7 {[%emt 0:00:26]} 4. O-O {[%emt 0:00:33]} e6 {[%emt 0:00:27]} 5. c4 {[%emt 0:00:31]} Be7 {[%emt 0:00:32]} 6. b3 {[%emt 0:00:27]} d5 {[%emt 0:00:38]} 7. Bb2 {[%emt 0:00:28]} O-O {[%emt 0:00:28]} 8. cxd5 {[%emt 0:00:42]} exd5 {[%emt 0:00:28]} 9. d4 {[%emt 0:00:48]} Na6 {[%emt 0:00:43]} 10. Nbd2 {[%emt 0:00:48]} c5 {[%emt 0:00:35]} 11. Rc1 {[%emt 0:00:41]} Bd6 {[%emt 0:01:12]} 12. Nh4 {[%emt 0:01:44]} g6 {[%emt 0:01:42]} 13. Nc4 {[%emt 0:00:47]} Be7 {[%emt 0:01:51]} 14. Ne5 {[%emt 0:01:08]} Ne4 {[%emt 0:01:00]} 15. Nhf3 {[%emt 0:00:29]} Bf6 {[%emt 0:01:21]} 16. Nd2 {[%emt 0:00:55]} Re8 {[%emt 0:01:04]} 17. a3 {[%emt 0:01:03]} Bg7 {[%emt 0:01:08]} 18. e3 {[%emt 0:01:09]} Rc8 {[%emt 0:00:38]} 19. Nxe4 {[%emt 0:02:33]} dxe4 {[%emt 0:00:32]} 20. Qe2 {[%emt 0:00:29]} f6 {[%emt 0:01:38]} 21. Nc4 {[%emt 0:00:41]} Qe7 {[%emt 0:00:40]} 22. Rfd1 {[%emt 0:01:21]} Red8 {[%emt 0:00:38]} 23. h4 {[%emt 0:00:53]} cxd4 {[%emt 0:00:50]} 24. Bxd4 {[%emt 0:00:42]} Nc5 {[%emt 0:00:38]} 25. Bxc5 {[%emt 0:00:57]} Rxc5 {[%emt 0:00:40]} 26. Rxd8+ {[%emt 0:01:25]} Qxd8 {[%emt 0:00:26]} 27. Rd1 {[%emt 0:00:40]} Rd5 {[%emt 0:00:32]} 28. Rxd5 {[%emt 0:00:28]} Qxd5 {[%emt 0:00:27]} 29. Qc2 {[%emt 0:00:29]} f5 {[%emt 0:00:37]} 30. Bf1 {[%emt 0:00:26]} Qc5 {[%emt 0:01:15]} 31. b4 {[%emt 0:00:34]} Qc7 {[%emt 0:00:27]} 32. Qd2 {[%emt 0:00:37]} Bf8 {[%emt 0:02:37]} 33. Qd4 {[%emt 0:00:28]} Be7 {[%emt 0:00:27]} 34. Be2 {[%emt 0:01:02]} Qd8 {[%emt 0:00:45]} 35. Qe5 {[%emt 0:01:47]} Bd5 {[%emt 0:00:28]} 36. Kf1 {[%emt 0:00:55]} Bf6 {[%emt 0:00:33]} 37. Qd6 {[%emt 0:00:31]} Bxc4 {[%emt 0:00:48]} 38. Bxc4+ {[%emt 0:00:29]} Kg7 {[%emt 0:00:27]} 39. Qe6 {[%emt 0:01:09]} Qe7 {[%emt 0:01:20]} 40. Qg8+ {[%emt 0:00:36]} Kh6 {[%emt 0:00:26]} 41. Kg2 {[%emt 0:00:48]} Bb2 {[%emt 0:00:45]} 42. b5 {[%emt 0:01:08]} Bxa3 {[%emt 0:00:39]} 1/2-1/2